bitfinex/quotes_BTCUSD_20220103
["timestamp","ask_amount","ask_price","bid_price","bid_amount"]
[1641252684670,0.0004,46447.0,46443.0,1.523847]
[1641252685075,0.0004,46447.0,46443.0,0.393847]
[1641252686321,0.01114313,46444.0,46443.0,0.67080782]
[1641252687323,0.01603697,46444.0,46443.0,0.67080782]
[1641252688322,0.01603697,46444.0,46443.0,0.86116967]
[1641252688522,0.01603697,46444.0,46443.0,0.66116967]
[1641252688724,0.01603697,46444.0,46443.0,0.393847]
[1641252689122,0.01603697,46444.0,46443.0,0.66067772]
[1641252690582,0.01443697,46444.0,46443.0,2.10367772]
[1641252690785,0.01333697,46444.0,46443.0,2.10367772]
[1641252691082,0.0002,46445.0,46444.0,1.8]
[1641252691281,0.0002,46445.0,46444.0,2.243847]
[1641252691484,0.0002,46445.0,46444.0,3.80382315]
[1641252692384,0.0004,46447.0,46446.0,1.86]
[1641252692583,0.0004,46447.0,46446.0,3.74458746]
[1641252694021,0.0004,46447.0,46446.0,2.08458746]
[1641252694623,0.0004,46447.0,46446.0,2.17454746]
[1641252695320,0.0004,46450.0,46448.0,1.58]
[1641252695522,0.0004,46450.0,46448.0,2.173847]
[1641252695724,0.0008,46449.0,46448.0,3.416847]
[1641252695922,0.0003,46452.0,46450.0,1.693747]
[1641252696121,0.0003,46452.0,46451.0,3.353747]
[1641252696322,0.0001,46454.0,46453.0,2.200747]
[1641252696521,0.0001,46454.0,46453.0,3.53812266]
[1641252696923,0.0001,46454.0,46453.0,3.6457297]
[1641252697221,0.00020909,46454.0,46453.0,3.64668945]
[1641252697472,0.00020909,46454.0,46453.0,3.89709493]
[1641252697669,0.00020909,46454.0,46453.0,1.99668945]
[1641252697869,0.00029909,46455.0,46454.0,1.84201668]
[1641252698068,0.00029909,46455.0,46454.0,0.49511668]
[1641252698269,0.00028909,46456.0,46455.0,0.350747]
[1641252698472,0.00037909,46457.0,46455.0,0.393847]
[1641252698671,0.00037909,46457.0,46455.0,0.096916]
[1641252699474,0.00037909,46457.0,46456.0,0.350747]
[1641252702022,6.909e-05,46457.0,46456.0,0.350747]
[1641252702718,6.909e-05,46457.0,46456.0,0.35928]
[1641252704021,6.909e-05,46457.0,46456.0,0.008533]
[1641252705374,6.909e-05,46457.0,46456.0,0.062349]
[1641252705974,6.909e-05,46457.0,46456.0,0.413096]
[1641252707079,6.909e-05,46457.0,46456.0,0.062349]
[1641252707274,6.909e-05,46457.0,46456.0,0.008533]
[1641252708075,6.909e-05,46457.0,46456.0,0.00949269]
[1641252708623,0.00017038,46457.0,46456.0,0.00949269]
[1641252709027,0.10017038,46457.0,46456.0,0.00949269]
[1641252709826,0.32801855,46450.0,46441.0,0.31057459]
[1641252710025,0.053839,46446.0,46441.0,0.30930975]
[1641252710625,0.053839,46446.0,46441.0,0.31784275]
[1641252710827,0.32041017,46445.0,46441.0,0.31784275]
[1641252711332,0.70389414,46445.0,46441.0,0.31784275]
[1641252713177,0.42808617,46445.0,46441.0,0.31784275]
[1641252713774,0.42808617,46445.0,46441.0,0.008533]
[1641252713978,0.33176072,46444.0,46441.0,0.008533]
[1641252715475,0.2576241,46443.0,46441.0,0.008533]
[1641252716131,0.4987422,46443.0,46441.0,0.008533]
[1641252716629,0.2576241,46443.0,46441.0,0.008533]
[1641252717432,0.053838,46445.0,46441.0,0.008533]
[1641252718630,0.38190671,46445.0,46441.0,0.008533]
[1641252719032,0.00017715,46444.0,46441.0,0.008533]
[1641252721370,0.05384528,46443.0,46441.0,0.008533]
[1641252721570,0.29753158,46442.0,46441.0,0.008533]
[1641252722168,0.53557917,46442.0,46441.0,0.008533]
[1641252722571,0.63557917,46442.0,46441.0,0.008533]
[1641252722970,0.33804759,46442.0,46441.0,0.008533]
[1641252723616,0.52168813,46442.0,46441.0,0.008533]
[1641252723816,0.62168813,46442.0,46441.0,0.008533]
[1641252724419,0.67553413,46442.0,46441.0,0.008533]
[1641252724619,0.72553413,46442.0,46441.0,0.008533]
[1641252727477,0.82553413,46442.0,46427.0,0.0550912]
[1641252727679,0.053848,46435.0,46427.0,0.0550912]
[1641252727886,0.29356022,46434.0,46427.0,0.0550912]
[1641252728078,0.4375552,46438.0,46427.0,0.053848]
[1641252728279,0.4375552,46438.0,46426.0,0.601]
[1641252728280,0.2911493,46428.0,46426.0,0.601]
[1641252728480,0.25364216,46427.0,46426.0,0.601]
[1641252728677,0.98930074,46427.0,46426.0,0.601]
[1641252729077,0.70161513,46427.0,46426.0,0.601]
[1641252729680,0.98092272,46427.0,46426.0,0.601]
[1641252729878,0.08684,46427.0,46426.0,0.601]
[1641252730078,0.053858,46428.0,46426.0,0.951747]
[1641252730278,0.053858,46428.0,46427.0,0.350747]
[1641252730480,0.15,46430.0,46427.0,0.350747]
[1641252730882,0.28366876,46431.0,46427.0,0.350747]
[1641252731124,0.28366876,46431.0,46426.0,0.618066]
[1641252731524,0.33752076,46431.0,46426.0,0.618066]
[1641252731724,0.053851,46430.0,46426.0,0.618066]
[1641252733926,0.28366876,46431.0,46426.0,0.671915]
[1641252734125,0.28366876,46431.0,46426.0,0.618066]
[1641252734974,0.053853,46430.0,46426.0,0.618066]
[1641252736176,0.33102726,46430.0,46426.0,0.618066]
[1641252736573,0.43102726,46430.0,46426.0,0.618066]
[1641252736972,0.05386,46429.0,46426.0,0.618066]
[1641252737172,0.05386,46428.0,46426.0,0.618066]
[1641252738634,0.27955849,46427.0,46426.0,0.618066]
[1641252741040,0.34122163,46427.0,46426.0,0.618066]
[1641252741238,0.05386,46428.0,46426.0,0.618066]
[1641252741437,0.053855,46429.0,46426.0,0.618066]
[1641252742037,0.00016324,46427.0,46426.0,0.618066]
[1641252742472,0.33187749,46427.0,46426.0,0.618066]
[1641252743678,0.00016324,46427.0,46426.0,0.618066]
[1641252743874,0.00016324,46427.0,46426.0,0.968813]
[1641252746426,0.07305608,46431.0,46427.0,1.55]
[1641252746627,0.161569,46440.0,46427.0,1.55]
[1641252746628,0.1,46443.0,46433.0,0.00121905]
[1641252746828,0.287,46444.0,46433.0,0.00121905]
[1641252747126,0.287,46444.0,46433.0,0.04056922]
[1641252747529,0.287,46444.0,46433.0,0.6682198]
[1641252747530,0.27561714,46441.0,46433.0,0.6682198]
[1641252747730,0.27561714,46441.0,46436.0,0.053837]
[1641252748929,0.27561714,46441.0,46433.0,0.03931905]
[1641252748930,0.29469702,46440.0,46428.0,0.053847]
[1641252749131,0.29469702,46440.0,46427.0,0.28722591]
[1641252749132,0.107696,46435.0,46427.0,0.286]
[1641252749332,0.053849,46435.0,46426.0,0.618066]
[1641252749530,0.00129188,46434.0,46426.0,0.618066]
[1641252749729,0.34885615,46434.0,46433.0,0.72213446]
[1641252749977,1.01121179,46434.0,46433.0,0.72213446]
[1641252750280,1.01121179,46434.0,46426.0,0.618066]
[1641252750281,1.16507079,46434.0,46426.0,0.618066]
[1641252750477,0.4101123,46427.0,46426.0,0.618066]
[1641252750673,0.5101123,46427.0,46426.0,0.601]
[1641252750874,0.86302734,46427.0,46426.0,0.601]
[1641252751075,1.20542289,46427.0,46426.0,0.601]
[1641252751675,0.85250785,46427.0,46426.0,0.601]
[1641252752774,1.14682018,46427.0,46426.0,0.601]
[1641252752974,1.14695374,46427.0,46426.0,0.601]
[1641252753175,0.15399756,46427.0,46426.0,0.601]
[1641252753375,0.00013356,46427.0,46426.0,0.601]
[1641252753625,0.00013356,46427.0,46426.0,0.960281]
[1641252755523,0.00013356,46427.0,46426.0,1.68241546]
[1641252757371,0.00013356,46427.0,46426.0,0.960281]
[1641252757773,0.00013356,46427.0,46426.0,1.68241546]
[1641252758175,0.00013356,46427.0,46426.0,0.960281]
[1641252758374,0.00013356,46427.0,46426.0,1.010281]
[1641252758576,0.00013356,46427.0,46426.0,1.38297289]
[1641252758773,0.00013356,46427.0,46426.0,2.52597289]
[1641252758978,0.00013356,46427.0,46426.0,2.196381]
[1641252759175,0.00013356,46427.0,46426.0,2.396381]
[1641252759375,0.2386109,46440.0,46434.0,0.3319588]
[1641252759781,0.2386109,46440.0,46434.0,0.3858008]
[1641252759975,0.2924509,46440.0,46434.0,0.3858008]
[1641252760376,0.29111158,46439.0,46431.0,0.72992407]
[1641252760576,0.29111158,46439.0,46432.0,0.350747]
[1641252760777,0.29111158,46439.0,46432.0,1.08067107]
[1641252760976,0.053845,46436.0,46432.0,1.08067107]
[1641252761228,0.2386109,46440.0,46432.0,1.08067107]
[1641252761428,0.053844,46439.0,46432.0,1.08067107]
[1641252761630,0.053844,46439.0,46432.0,0.350747]
[1641252761830,0.2386109,46440.0,46432.0,0.350747]
[1641252762228,0.2386109,46440.0,46432.0,0.78376807]
[1641252762229,0.053842,46438.0,46432.0,0.78376807]
[1641252762427,0.053842,46438.0,46433.0,0.350747]
[1641252763228,0.053842,46438.0,46429.0,0.28981325]
[1641252763430,0.053842,46438.0,46430.0,0.404593]
[1641252763829,0.00012731,46437.0,46430.0,0.404593]
[1641252764235,0.053845,46435.0,46430.0,0.404593]
[1641252764436,0.00012731,46437.0,46430.0,0.404593]
[1641252765471,0.053845,46435.0,46430.0,0.404593]
[1641252765673,0.29893439,46434.0,46430.0,0.350747]
[1641252765872,0.00012731,46437.0,46430.0,0.350747]
[1641252766073,0.00012731,46437.0,46429.0,0.28981325]
[1641252766274,0.107697,46436.0,46430.0,0.350747]
[1641252766572,0.00012731,46437.0,46430.0,0.350747]
[1641252766573,0.053848,46434.0,46430.0,0.350747]
[1641252766777,0.053853,46433.0,46426.0,0.601]
[1641252766974,0.30303948,46433.0,46427.0,0.350747]
[1641252767574,0.30303948,46433.0,46426.0,0.601]
[1641252767973,0.30303948,46433.0,46427.0,0.350747]
[1641252768375,0.053853,46430.0,46427.0,0.350747]
[1641252768627,0.053849,46434.0,46427.0,0.350747]
[1641252769326,0.00012731,46437.0,46427.0,0.350747]
[1641252769523,0.00012731,46437.0,46430.0,0.053846]
[1641252769723,0.00012731,46437.0,46431.0,0.61809093]
[1641252770126,0.00012731,46437.0,46431.0,0.350747]
[1641252770526,0.053844,46436.0,46431.0,0.350747]
[1641252770725,0.00012731,46437.0,46432.0,0.60107097]
[1641252770925,0.00012731,46437.0,46433.0,0.350747]
[1641252771526,0.00012731,46437.0,46433.0,0.614951]
[1641252771729,0.00012731,46437.0,46433.0,0.61847661]
[1641252771930,0.00012731,46437.0,46436.0,1.750747]
[1641252772382,0.00012731,46437.0,46436.0,0.350747]
[1641252772681,0.00012731,46437.0,46436.0,0.67565678]
[1641252773483,0.00012731,46437.0,46436.0,0.72949278]
[1641252774886,0.00012731,46437.0,46436.0,0.82387595]
[1641252775084,0.00012731,46437.0,46436.0,2.67387595]
[1641252775287,0.00012731,46437.0,46436.0,3.81687595]
[1641252775584,0.00012731,46437.0,46436.0,2.67387595]
[1641252776224,0.00012731,46437.0,46436.0,3.81687595]
[1641252778627,0.00012731,46437.0,46436.0,4.54680002]
[1641252779875,0.00012731,46437.0,46436.0,3.81687595]
[1641252780275,7.31e-06,46437.0,46436.0,3.91687595]
[1641252780574,7.31e-06,46437.0,46436.0,4.64518524]
[1641252780772,7.31e-06,46437.0,46436.0,4.61017595]
[1641252780976,7.31e-06,46437.0,46436.0,4.51017595]
[1641252781175,7.31e-06,46437.0,46436.0,4.13526617]
[1641252782376,7.31e-06,46437.0,46436.0,4.18526617]
[1641252782777,6.909e-05,46457.0,46436.0,4.28526617]
[1641252782978,6.909e-05,46457.0,46450.0,0.00121654]
[1641252783177,6.909e-05,46457.0,46455.0,1.143]
[1641252783376,6.909e-05,46457.0,46456.0,0.393847]
[1641252783826,6.909e-05,46457.0,46456.0,0.70435611]
[1641252784428,6.909e-05,46457.0,46456.0,0.393847]
[1641252785428,0.00018772,46457.0,46456.0,0.393847]
[1641252787874,0.00018772,46457.0,46456.0,0.40238]
[1641252788878,0.00018772,46457.0,46456.0,0.35928]
[1641252790177,0.00018772,46457.0,46456.0,0.63066002]
[1641252791222,0.00018772,46457.0,46456.0,1.35818259]
[1641252791921,0.00018772,46457.0,46456.0,1.41199759]
[1641252792525,0.00018772,46457.0,46456.0,0.68447502]
[1641252792922,0.00018772,46457.0,46456.0,1.41199759]
[1641252793626,0.00018772,46457.0,46456.0,1.14061757]
[1641252795574,0.00018772,46457.0,46456.0,1.41518602]
[1641252796175,0.00018772,46457.0,46456.0,1.41018602]
[1641252796375,0.00018772,46457.0,46456.0,1.13561757]
[1641252796575,0.00018772,46457.0,46456.0,0.408095]
[1641252797177,0.00018772,46457.0,46456.0,0.6826714]
[1641252798176,0.00018772,46457.0,46456.0,1.39183435]
[1641252798377,0.00018772,46457.0,46456.0,1.12667946]
[1641252799327,0.00018772,46457.0,46456.0,1.07286446]
[1641252799527,0.05018772,46457.0,46456.0,1.07286446]
[1641252799727,0.05018772,46457.0,46456.0,0.345747]
[1641252799928,0.05018772,46457.0,46456.0,0.35428]
[1641252800126,0.05018772,46457.0,46456.0,0.35137661]
[1641252800528,0.05018772,46457.0,46456.0,0.008533]
[1641252801528,0.00018772,46457.0,46456.0,0.008533]
[1641252802578,0.00018772,46457.0,46456.0,0.358713]
[1641252802980,0.00018772,46457.0,46456.0,0.412528]
[1641252803178,0.00018772,46457.0,46456.0,0.68230965]
[1641252803777,0.00018772,46457.0,46456.0,1.44230965]
[1641252804580,0.00018772,46457.0,46456.0,0.68230965]
[1641252805781,0.00018772,46457.0,46456.0,1.13921241]
[1641252806239,0.00018772,46457.0,46456.0,0.412528]
[1641252806439,0.00018772,46457.0,46456.0,0.358713]
[1641252807040,0.0013,46459.0,46456.0,0.358713]
[1641252807238,0.053817,46459.0,46456.0,0.358713]
[1641252807640,0.053817,46459.0,46456.0,0.008533]
[1641252808039,0.053817,46459.0,46458.0,0.72387569]
[1641252809441,0.053815,46462.0,46458.0,1.07405569]
[1641252809639,0.053815,46462.0,46459.0,0.35018]
[1641252810079,0.053815,46462.0,46458.0,0.72387569]
[1641252810882,0.053815,46462.0,46457.0,0.72387569]
[1641252811879,0.053815,46462.0,46458.0,0.72387569]
[1641252812282,0.053815,46462.0,46459.0,0.72387569]
[1641252812480,0.053819,46461.0,46459.0,0.72387569]
[1641252812681,0.103815,46462.0,46459.0,0.72387569]
[1641252812980,0.053819,46461.0,46458.0,0.72387569]
[1641252813385,0.053823,46460.0,46459.0,0.72387569]
[1641252813630,0.103823,46460.0,46459.0,0.72387569]
[1641252813831,0.05,46460.0,46456.0,0.008533]
[1641252814032,0.103819,46461.0,46456.0,0.008533]
[1641252814231,0.053822,46459.0,46456.0,0.008533]
[1641252814431,0.107646,46459.0,46456.0,0.008533]
[1641252814632,0.157646,46459.0,46456.0,0.73240869]
[1641252815033,0.211471,46459.0,46456.0,0.73240869]
[1641252815432,0.161471,46459.0,46456.0,0.73240869]
[1641252815634,0.107646,46459.0,46456.0,0.008533]
[1641252816233,0.157646,46459.0,46456.0,0.008533]
[1641252816432,0.107646,46459.0,46456.0,0.008533]
[1641252816833,0.053821,46458.0,46456.0,0.008533]
[1641252817382,0.05,46457.0,46456.0,0.008533]
[1641252817984,0.05008775,46457.0,46456.0,0.008533]
[1641252821438,0.4198047,46457.0,46456.0,0.008533]
[1641252821737,0.5198047,46457.0,46456.0,0.008533]
[1641252822639,0.4698047,46457.0,46456.0,0.008533]
[1641252823037,0.46970325,46457.0,46456.0,0.008533]
[1641252824638,0.51970325,46457.0,46456.0,0.008533]
[1641252825078,0.15,46457.0,46456.0,0.008533]
[1641252825478,0.05,46457.0,46456.0,0.008533]
[1641252828726,0.05007935,46457.0,46456.0,0.008533]
[1641252829328,7.935e-05,46457.0,46456.0,0.358713]
[1641252829928,7.935e-05,46457.0,46456.0,0.62707342]
[1641252830228,7.935e-05,46457.0,46456.0,0.358713]
[1641252832231,0.05358535,46459.0,46456.0,0.358713]
[1641252832481,0.05358535,46459.0,46456.0,0.412529]
[1641252832877,0.05358535,46459.0,46456.0,0.358713]
[1641252835480,0.05358535,46459.0,46456.0,0.412529]
[1641252836427,0.05358535,46459.0,46456.0,0.358713]
[1641252839329,7.298e-05,46458.0,46456.0,0.358713]
[1641252839528,0.05389198,46458.0,46456.0,0.358713]
[1641252840378,7.298e-05,46458.0,46456.0,0.358713]
[1641252841679,7.298e-05,46458.0,46456.0,0.412529]
[1641252843081,7.298e-05,46458.0,46457.0,0.26084168]
[1641252843285,7.298e-05,46458.0,46457.0,2.29412168]
[1641252844534,7.298e-05,46458.0,46457.0,0.65412168]
[1641252844730,7.298e-05,46458.0,46457.0,0.65401568]
[1641252845332,7.298e-05,46458.0,46457.0,1.84401568]
[1641252846932,7.298e-05,46458.0,46457.0,0.65401568]
[1641252848879,7.298e-05,46458.0,46457.0,0.39328]
[1641252850180,7.298e-05,46458.0,46457.0,0.95328]
[1641252850383,0.24715107,46458.0,46457.0,0.39328]
[1641252850580,0.24715107,46458.0,46457.0,0.35018]
[1641252850781,0.24715107,46458.0,46456.0,0.00939629]
[1641252852533,0.24715107,46458.0,46454.0,0.7187842]
[1641252852733,0.053823,46457.0,46454.0,0.7187842]
[1641252852933,0.39253021,46457.0,46454.0,0.7187842]
[1641252853535,0.053824,46456.0,46454.0,0.7187842]
[1641252853735,0.053824,46456.0,46450.0,0.2698]
[1641252853936,0.053827,46454.0,46450.0,0.2698]
[1641252854135,0.107653,46455.0,46450.0,0.2698]
[1641252854336,0.32390734,46452.0,46450.0,0.2698]
[1641252854537,0.107653,46455.0,46450.0,0.2698]
[1641252854988,0.157653,46455.0,46450.0,0.278333]
[1641252855483,0.25260944,46453.0,46450.0,0.278333]
[1641252855684,0.36026344,46453.0,46450.0,0.278333]
[1641252856287,0.51665541,46453.0,46450.0,0.278333]
[1641252856486,0.36026344,46453.0,46450.0,0.278333]
[1641252857888,0.053833,46452.0,46450.0,0.278333]
[1641252858188,0.103833,46452.0,46450.0,0.278333]
[1641252859034,0.00798,46451.0,46450.0,0.278333]
[1641252862787,0.107654,46453.0,46450.0,0.278333]
[1641252866338,0.05,46452.0,46450.0,0.278333]
[1641252867840,0.00798,46451.0,46450.0,0.278333]
[1641252868238,0.05,46452.0,46450.0,0.278333]
[1641252868439,0.00798,46451.0,46450.0,0.278333]
[1641252869142,0.103833,46452.0,46450.0,0.278333]
[1641252871585,0.107654,46453.0,46450.0,0.278333]
[1641252871985,0.00013758,46451.0,46450.0,0.278333]
[1641252874748,0.26211379,46451.0,46450.0,0.278333]
[1641252877488,0.00013758,46451.0,46450.0,0.278333]
[1641252887988,0.00013758,46451.0,46450.0,0.54764958]
[1641252888390,0.00013758,46451.0,46450.0,0.89782958]
[1641252888634,0.00013758,46451.0,46450.0,0.94092958]
[1641252888835,0.00013758,46451.0,46450.0,1.2569693]
[1641252889033,0.00013758,46451.0,46450.0,1.3646063]
[1641252892984,0.00013758,46451.0,46450.0,0.77925]
[1641252893185,0.00013758,46451.0,46450.0,0.671613]
[1641252894389,0.00013758,46451.0,46450.0,0.628513]
[1641252896340,0.00013758,46451.0,46450.0,0.90058966]
[1641252896538,0.00013758,46451.0,46450.0,0.90038801]
[1641252897037,0.00013758,46451.0,46450.0,0.9082406]
[1641252897238,0.00013758,46451.0,46450.0,0.9513406]
[1641252900188,0.00013758,46451.0,46450.0,0.94348801]
[1641252901592,0.00013758,46451.0,46450.0,1.48348801]
[1641252901991,0.00013758,46451.0,46450.0,0.94348801]
[1641252903640,4.395e-05,46451.0,46450.0,0.94348801]
[1641252906546,4.395e-05,46451.0,46450.0,1.475543]
[1641252906747,4.395e-05,46451.0,46450.0,0.845543]
[1641252907987,0.00012865,46451.0,46450.0,0.845543]
[1641252908183,0.00012865,46451.0,46450.0,1.10472499]
[1641252908584,0.00012865,46451.0,46450.0,1.71472499]
[1641252908883,0.00012865,46451.0,46450.0,1.10472499]
[1641252911534,0.00012865,46451.0,46450.0,1.63472499]
[1641252912134,0.00012865,46451.0,46450.0,1.10472499]
[1641252913535,0.00012865,46451.0,46450.0,1.54472499]
[1641252913737,0.00012865,46451.0,46450.0,1.75132355]
[1641252913936,0.00012865,46451.0,46450.0,2.93772499]
[1641252914138,0.00012865,46451.0,46450.0,2.66584998]
[1641252914338,0.00012865,46451.0,46450.0,3.01864998]
[1641252914539,0.00012865,46451.0,46450.0,3.87864998]
[1641252914737,0.00012865,46451.0,46450.0,3.01864998]
[1641252915389,0.00012865,46451.0,46450.0,2.85564998]
[1641252916191,0.00012865,46451.0,46450.0,3.99864998]
[1641252917295,0.00012865,46451.0,46450.0,2.85564998]
[1641252918290,0.00012865,46451.0,46450.0,3.99864998]
[1641252919942,0.00012865,46451.0,46450.0,2.85564998]
[1641252920241,0.00012865,46451.0,46450.0,3.99864998]
[1641252920642,0.00012865,46451.0,46450.0,3.94864998]
[1641252921143,0.00012865,46451.0,46450.0,2.80564998]
[1641252921342,0.00012865,46451.0,46450.0,2.90564998]
[1641252921542,0.00012865,46451.0,46450.0,4.13170129]
[1641252921943,0.00012865,46451.0,46450.0,1.85870129]
[1641252922142,0.00012865,46451.0,46450.0,1.65870129]
[1641252922386,0.00012865,46451.0,46450.0,2.19870129]
[1641252922587,0.00012865,46451.0,46450.0,2.39870129]
[1641252923186,0.00012865,46451.0,46450.0,3.54170129]
[1641252923584,0.00012865,46451.0,46450.0,3.74170129]
[1641252924287,0.00012865,46451.0,46450.0,3.59170129]
[1641252924486,0.00012865,46451.0,46450.0,2.44870129]
[1641252924787,0.00012865,46451.0,46450.0,3.59170129]
[1641252924985,0.00012865,46451.0,46450.0,3.64170129]
[1641252926131,0.00012865,46451.0,46450.0,1.90870129]
[1641252926732,0.00012865,46451.0,46450.0,3.05170129]
[1641252927133,0.00012865,46451.0,46450.0,1.90870129]
[1641252928335,0.00012865,46451.0,46450.0,2.39870129]
[1641252929236,0.00012865,46451.0,46450.0,1.85870129]
[1641252929435,0.00012865,46451.0,46450.0,1.65870129]
[1641252929636,0.00012865,46451.0,46450.0,1.16870129]
[1641252929887,0.05510429,46463.0,46456.0,0.053816]
[1641252930588,0.053816,46461.0,46456.0,0.053816]
[1641252930787,0.00128829,46463.0,46456.0,0.053816]
[1641252930986,0.00128829,46463.0,46459.0,0.053813]
[1641252931390,0.00128829,46463.0,46459.0,0.77260454]
[1641252931585,0.053813,46462.0,46459.0,0.77260454]
[1641252931988,0.00088772,46464.0,46460.0,0.26073029]
[1641252932190,0.00088772,46464.0,46462.0,0.053806]
[1641252932488,0.00088772,46464.0,46463.0,0.40018]
[1641252932688,0.00088772,46464.0,46463.0,0.45934]
[1641252932890,0.00088772,46464.0,46463.0,1.17813154]
[1641252933090,0.00088772,46464.0,46463.0,0.45934]
[1641252933489,8.772e-05,46465.0,46464.0,1.82018]
[1641252933748,8.772e-05,46465.0,46464.0,1.79131899]
[1641252934447,8.772e-05,46465.0,46464.0,0.9354961]
[1641252934647,8.772e-05,46465.0,46464.0,1.21033009]
[1641252935247,8.772e-05,46465.0,46464.0,1.0090851]
[1641252935449,8.772e-05,46465.0,46464.0,1.2090851]
[1641252936651,8.772e-05,46465.0,46464.0,2.3520851]
[1641252937585,8.772e-05,46465.0,46464.0,1.2090851]
[1641252937988,8.772e-05,46465.0,46464.0,2.3520851]
[1641252938186,8.772e-05,46465.0,46464.0,1.2090851]
[1641252938386,0.0003,46467.0,46466.0,1.47]
[1641252938588,0.0003,46467.0,46466.0,3.00628]
[1641252938787,0.0003,46467.0,46466.0,3.05628]
[1641252939187,0.0003,46467.0,46466.0,1.78628]
[1641252939487,0.0003,46467.0,46466.0,0.64328]
[1641252939688,0.00041839,46467.0,46466.0,0.64328]
[1641252940089,0.00041839,46467.0,46466.0,0.44328]
[1641252940491,0.00041839,46467.0,46466.0,0.39328]
[1641252942037,0.00041839,46467.0,46466.0,0.44328]
[1641252947000,0.0003,46470.0,46469.0,1.99018]
[1641252947199,0.0003,46470.0,46469.0,0.5945606]
[1641252947399,0.0003,46470.0,46469.0,1.7875606]
[1641252948409,0.0003,46470.0,46469.0,0.6445606]
[1641252948956,0.0003,46470.0,46469.0,1.7875606]
[1641252949156,0.0003,46470.0,46469.0,1.9375606]
[1641252950465,0.0004,46477.0,46469.0,1.9375606]
[1641252950466,0.0001,46478.0,46476.0,0.10886577]
[1641252950657,0.0001,46478.0,46477.0,0.053784]
[1641252951258,0.0001,46478.0,46477.0,0.86570948]
[1641252951557,0.0001,46478.0,46477.0,1.62607097]
[1641252951757,0.0011,46479.0,46478.0,1.82]
[1641252951957,0.01100224,46484.0,46481.0,2.9633]
[1641252952157,0.01100224,46484.0,46481.0,2.00628739]
[1641252952158,0.0023,46484.0,46481.0,2.00628739]
[1641252952597,0.0023,46484.0,46481.0,1.73658]
[1641252953199,0.0001,46484.0,46483.0,3.15318]
[1641252953400,0.0001,46484.0,46483.0,1.84727681]
[1641252953601,0.0001,46484.0,46483.0,1.890049]
[1641252954302,0.0001,46484.0,46483.0,2.19830712]
[1641252954499,0.0001,46484.0,46483.0,1.890049]
[1641252954700,0.0001,46484.0,46483.0,0.547049]
[1641252955099,0.0001,46484.0,46483.0,0.497049]
[1641252955800,0.0001,46484.0,46483.0,0.447049]
[1641252958436,0.0001,46484.0,46483.0,0.096869]
[1641252958636,0.0001,46484.0,46483.0,0.81299895]
[1641252958839,0.0001,46484.0,46483.0,1.16317895]
[1641252959237,0.0001,46484.0,46483.0,0.447049]
[1641252959885,0.0001,46484.0,46483.0,1.1631436]
[1641252960486,0.0001,46484.0,46483.0,1.67376945]
[1641252960693,0.0001,46484.0,46483.0,2.81676945]
[1641252960886,0.0001,46484.0,46483.0,2.10067485]
[1641252961085,0.00018859,46484.0,46483.0,2.10067485]
[1641252961488,0.00018859,46484.0,46483.0,2.15067485]
[1641252961786,0.00018859,46484.0,46483.0,0.547049]
[1641252961986,0.00018859,46484.0,46483.0,2.1482184]
[1641252963638,0.95097655,46485.0,46484.0,3.05066169]
[1641252963936,0.95097655,46485.0,46484.0,3.08628]
[1641252964141,0.95097655,46485.0,46484.0,3.08749519]
[1641252964337,0.95097655,46485.0,46484.0,3.12302337]
[1641252964738,0.95097655,46485.0,46484.0,1.77302337]
[1641252967391,0.95097655,46485.0,46484.0,1.77180818]
[1641252968191,0.95097655,46485.0,46484.0,1.73628]
[1641252969190,0.95097655,46485.0,46484.0,1.83628]
[1641252971440,0.95104987,46485.0,46484.0,1.8369405]
[1641252973141,0.95104987,46485.0,46484.0,1.7369405]
[1641252973741,0.95104987,46485.0,46484.0,1.74366251]
[1641252973941,0.95104987,46485.0,46484.0,1.7454735]
[1641252974241,0.52094987,46485.0,46484.0,2.5554735]
[1641252974443,0.52094987,46485.0,46484.0,1.8454735]
[1641252976594,0.09086787,46485.0,46484.0,1.8454735]
[1641252977193,0.09086787,46485.0,46484.0,1.7454735]
[1641252977393,0.09086787,46485.0,46484.0,0.6024735]
[1641252977592,0.09086787,46485.0,46484.0,0.4024735]
[1641252978193,0.09055787,46485.0,46484.0,0.4024735]
[1641252978494,0.09024787,46485.0,46484.0,0.4024735]
[1641252979752,0.09024787,46485.0,46484.0,2.0196845]
[1641252980249,0.09024787,46485.0,46484.0,2.1196845]
[1641252980449,0.09024787,46485.0,46484.0,1.8454735]
[1641252980851,0.09024787,46485.0,46484.0,0.4024735]
[1641252982056,0.09024787,46485.0,46484.0,0.3593735]
[1641252988842,0.09024787,46485.0,46484.0,0.4093735]
[1641252989043,0.09024787,46485.0,46484.0,0.4593735]
[1641252989243,0.09024787,46485.0,46484.0,0.72403893]
[1641252989644,0.09024787,46485.0,46484.0,0.76713893]
[1641252990285,0.09024787,46485.0,46484.0,0.96713893]
[1641252990485,0.09024787,46485.0,46484.0,2.11013893]
[1641252990685,0.0003,46491.0,46484.0,2.11013893]
[1641252990686,0.0003,46491.0,46490.0,0.40665213]
[1641252990888,0.0003,46491.0,46490.0,0.75683213]
[1641252991286,0.0003,46491.0,46490.0,1.22052187]
[1641252991588,0.0003,46491.0,46490.0,2.36352187]
[1641252992988,0.0001,46491.0,46490.0,2.40662187]
[1641252993188,0.0003,46492.0,46491.0,2.963]
[1641252993189,0.0001,46492.0,46491.0,2.963]
[1641252993387,0.0001,46492.0,46491.0,3.45628]
[1641252993638,0.0001,46492.0,46491.0,3.510035]
[1641252994640,0.0001,46492.0,46491.0,1.890035]
[1641252997705,0.0001,46492.0,46491.0,1.979605]
[1641252997907,0.0004,46508.0,46504.0,0.2563807]
[1641252998108,0.0004,46512.0,46508.0,0.70955535]
[1641252998304,0.0004,46512.0,46508.0,2.24583535]
[1641252998505,0.3119,46521.0,46508.0,2.24583535]
[1641252998506,0.0004,46524.0,46522.0,0.41728224]
[1641252998707,0.0022,46529.0,46525.0,0.86]
[1641252998905,0.0022,46529.0,46528.0,0.35018]
[1641252999105,0.0003,46534.0,46528.0,0.38828]
[1641252999106,0.0001,46532.0,46528.0,0.38828]
[1641252999405,0.0004,46541.0,46528.0,0.38828]
[1641252999406,0.0496,46544.0,46533.0,0.2436834]
[1641252999605,0.440608,46538.0,46537.0,0.05372092]
[1641253000403,0.0001,46540.0,46537.0,0.05372092]
[1641253000404,0.0001,46540.0,46537.0,0.10744192]